[Event "Titled Tuesday Blitz May 23 Early 2023"]
[White "Dilmukhametov, Artur"]
[Black "Kostiukov, Alexandr"]
[WhiteFideId "24179922"]
[BlackFideId "14108100"]
[WhiteElo "2242"]
[BlackElo "2202"]
[Result "0-1"]
[Round "08"]
[TimeControl "180+2"]
[Date "2023.05.23"]
[WhiteClock "0:00:00"]
[BlackClock "0:00:04"]

1. e4 {[%clk 0:03:00]}  c5 {[%clk 0:02:58]} 2. Nf3 {[%clk 0:02:57]}  g6 {[%clk 0:02:58]} 3. c3 {[%clk 0:02:57]}  Bg7 {[%clk 0:02:58]} 4. d4 {[%clk 0:02:57]}  cxd4 {[%clk 0:02:59]} 5. cxd4 {[%clk 0:02:57]}  d5 {[%clk 0:02:59]} 6. exd5 {[%clk 0:02:56]}  Nf6 {[%clk 0:02:59]} 7. Nc3 {[%clk 0:02:56]}  Nxd5 {[%clk 0:02:59]} 8. Nxd5 {[%clk 0:02:53]}  Qxd5 {[%clk 0:02:52]} 9. Be3 {[%clk 0:02:54]}  O-O {[%clk 0:02:49]} 10. Be2 {[%clk 0:02:51]}  Nc6 {[%clk 0:02:48]} 11. O-O {[%clk 0:02:50]}  Bg4 {[%clk 0:02:45]} 12. b3 {[%clk 0:02:48]}  b5 {[%clk 0:02:43]} 13. h3 {[%clk 0:02:38]}  Bf5 {[%clk 0:02:36]} 14. Rc1 {[%clk 0:02:23]}  a6 {[%clk 0:02:30]} 15. Rc5 {[%clk 0:02:19]}  Qd7 {[%clk 0:02:29]} 16. Nh4 {[%clk 0:02:16]}  Bxh3 {[%clk 0:02:02]} 17. Qc1 {[%clk 0:02:03]}  Nxd4 {[%clk 0:01:52]} 18. Bxd4 {[%clk 0:01:54]}  Bxd4 {[%clk 0:01:46]} 19. Rd1 {[%clk 0:01:50]}  Be6 {[%clk 0:01:22]} 20. Rc7 {[%clk 0:01:40]}  Qd6 {[%clk 0:01:08]} 21. Nf3 {[%clk 0:01:34]}  Bxf2+ {[%clk 0:01:02]} 22. Kxf2 {[%clk 0:01:31]}  Qb6+ {[%clk 0:00:55]} 23. Ke1 {[%clk 0:01:22]}  Rac8 {[%clk 0:00:50]} 24. Rxc8 {[%clk 0:01:21]}  Rxc8 {[%clk 0:00:51]} 25. Qb2 {[%clk 0:01:10]}  b4 {[%clk 0:00:29]} 26. Ng5 {[%clk 0:01:01]}  Qg1+ {[%clk 0:00:19]} 27. Kd2 {[%clk 0:01:00]}  Rd8+ {[%clk 0:00:14]} 28. Kc1 {[%clk 0:00:57]}  Qe3+ {[%clk 0:00:14]} 29. Kb1 {[%clk 0:00:55]}  Bf5+ {[%clk 0:00:08]} 30. Ka1 {[%clk 0:00:53]}  Rxd1+ {[%clk 0:00:07]} 31. Bxd1 {[%clk 0:00:52]}  Qxg5 {[%clk 0:00:08]} 32. Bf3 {[%clk 0:00:19]}  Qe3 {[%clk 0:00:07]} 33. a3 {[%clk 0:00:13]}  bxa3 {[%clk 0:00:04]} 34. Qxa3 {[%clk 0:00:11]}  Qc3+ {[%clk 0:00:04]} 35. Ka2 {[%clk 0:00:11]}  Qc2+ {[%clk 0:00:04]} 36. Qb2 {[%clk 0:00:10]}  Qxb2+ {[%clk 0:00:03]} 37. Kxb2 {[%clk 0:00:11]}  Bd3 {[%clk 0:00:02]} 38. Kc3 {[%clk 0:00:10]}  Bb5 {[%clk 0:00:02]} 39. Bd5 {[%clk 0:00:09]}  e6 {[%clk 0:00:02]} 40. Bb7 {[%clk 0:00:09]}  Kf8 {[%clk 0:00:02]} 41. Kb4 {[%clk 0:00:08]}  Ke7 {[%clk 0:00:02]} 42. g3 {[%clk 0:00:09]}  Kd6 {[%clk 0:00:03]} 43. Be4 {[%clk 0:00:09]}  f5 {[%clk 0:00:03]} 44. Bc2 {[%clk 0:00:08]}  e5 {[%clk 0:00:03]} 45. Kc3 {[%clk 0:00:08]}  e4 {[%clk 0:00:04]} 46. Kd4 {[%clk 0:00:08]}  g5 {[%clk 0:00:03]} 47. Bd1 {[%clk 0:00:07]}  h6 {[%clk 0:00:02]} 48. Bh5 {[%clk 0:00:06]}  Bc6 {[%clk 0:00:03]} 49. Be2 {[%clk 0:00:05]}  Bb5 {[%clk 0:00:03]} 50. Bd1 {[%clk 0:00:05]}  Bf1 {[%clk 0:00:03]} 51. Bh5 {[%clk 0:00:04]}  Kc6 {[%clk 0:00:03]} 52. Bd1 {[%clk 0:00:04]}  Kb5 {[%clk 0:00:03]} 53. Bc2 {[%clk 0:00:03]}  Kb4 {[%clk 0:00:04]} 54. Bd1 {[%clk 0:00:03]}  a5 {[%clk 0:00:04]} 55. Bc2 {[%clk 0:00:02]}  Bd3 {[%clk 0:00:03]} 56. Bd1 {[%clk 0:00:02]}  f4 {[%clk 0:00:02]} 57. gxf4 {[%clk 0:00:02]}  gxf4 {[%clk 0:00:03]} 58. Bh5 {[%clk 0:00:00]}  f3 {[%clk 0:00:04]} 0-1


[Site "https://www.chess.com"]

[Event "Titled Tuesday Blitz May 23 Early 2023"]
[White "Bortnyk, Olexandr"]
[Black "Grischuk, Alexander"]
[WhiteFideId "14120828"]
[BlackFideId "4126025"]
[WhiteElo "2734"]
[BlackElo "2721"]
[Result "0-1"]
[Round "09"]
[TimeControl "180+2"]
[Date "2023.05.23"]
[WhiteClock "0:00:00"]
[BlackClock "0:00:21"]

1. d4 {[%clk 0:02:50]}  Nf6 {[%clk 0:02:59]} 2. Nc3 {[%clk 0:02:50]}  d5 {[%clk 0:03:00]} 3. Bf4 {[%clk 0:02:50]}  g6 {[%clk 0:03:00]} 4. e3 {[%clk 0:02:51]}  Bg7 {[%clk 0:03:01]} 5. h4 {[%clk 0:02:51]}  h5 {[%clk 0:03:01]} 6. Nf3 {[%clk 0:02:51]}  O-O {[%clk 0:03:01]} 7. Qd2 {[%clk 0:02:50]}  c5 {[%clk 0:03:00]} 8. Ne5 {[%clk 0:02:50]}  Nc6 {[%clk 0:02:57]} 9. f3 {[%clk 0:02:50]}  cxd4 {[%clk 0:02:42]} 10. exd4 {[%clk 0:02:51]}  Bf5 {[%clk 0:02:42]} 11. Bb5 {[%clk 0:02:50]}  Nxe5 {[%clk 0:02:10]} 12. dxe5 {[%clk 0:02:50]}  Nd7 {[%clk 0:02:11]} 13. Nxd5 {[%clk 0:02:45]}  Nxe5 {[%clk 0:02:07]} 14. Bxe5 {[%clk 0:00:41]}  Bxe5 {[%clk 0:02:05]} 15. O-O-O {[%clk 0:00:42]}  e6 {[%clk 0:01:42]} 16. Rhe1 {[%clk 0:00:24]}  Bg3 {[%clk 0:01:13]} 17. Ne3 {[%clk 0:00:07]}  Qxd2+ {[%clk 0:01:13]} 18. Kxd2 {[%clk 0:00:08]}  Rfd8+ {[%clk 0:01:09]} 19. Ke2 {[%clk 0:00:07]}  Bxe1 {[%clk 0:01:07]} 20. Rxe1 {[%clk 0:00:08]}  Rac8 {[%clk 0:01:06]} 21. Ba4 {[%clk 0:00:04]}  Rd4 {[%clk 0:01:04]} 22. Bb3 {[%clk 0:00:04]}  Rxh4 {[%clk 0:00:59]} 23. c3 {[%clk 0:00:03]}  Rd8 {[%clk 0:00:54]} 24. a3 {[%clk 0:00:02]}  Kg7 {[%clk 0:00:46]} 25. a4 {[%clk 0:00:01]}  Kf6 {[%clk 0:00:44]} 26. Rg1 {[%clk 0:00:02]}  g5 {[%clk 0:00:42]} 27. a5 {[%clk 0:00:02]}  Bd3+ {[%clk 0:00:29]} 28. Kf2 {[%clk 0:00:03]}  Ba6 {[%clk 0:00:30]} 29. Ke1 {[%clk 0:00:02]}  Rd3 {[%clk 0:00:28]} 30. Nd1 {[%clk 0:00:02]}  Rf4 {[%clk 0:00:25]} 31. Bc2 {[%clk 0:00:01]}  Rd5 {[%clk 0:00:24]} 32. b4 {[%clk 0:00:02]}  Re5+ {[%clk 0:00:24]} 33. Kd2 {[%clk 0:00:03]}  Re2+ {[%clk 0:00:23]} 34. Kc1 {[%clk 0:00:03]}  h4 {[%clk 0:00:23]} 35. Nb2 {[%clk 0:00:02]}  h3 {[%clk 0:00:21]} 36. gxh3 {[%clk 0:00:03]}  Rxf3 {[%clk 0:00:22]} 37. c4 {[%clk 0:00:04]}  Rc3 {[%clk 0:00:22]} 38. Rf1+ {[%clk 0:00:00]}  Ke7 {[%clk 0:00:21]} 0-1


[Site "https://www.chess.com"]

[Event "Titled Tuesday Blitz May 23 Early 2023"]
[White "Kramnik, Vladimir"]
[Black "Matlakov, Maxim"]
[WhiteFideId "4101588"]
[BlackFideId "4168003"]
[WhiteElo "2703"]
[BlackElo "2666"]
[Result "1/2-1/2"]
[Round "09"]
[TimeControl "180+2"]
[Date "2023.05.23"]
[WhiteClock "0:00:12"]
[BlackClock "0:00:08"]

1. e4 {[%clk 0:03:00]}  c5 {[%clk 0:02:55]} 2. Nf3 {[%clk 0:03:01]}  e6 {[%clk 0:02:54]} 3. c3 {[%clk 0:02:59]}  Nf6 {[%clk 0:02:52]} 4. e5 {[%clk 0:02:59]}  Nd5 {[%clk 0:02:52]} 5. d4 {[%clk 0:02:59]}  cxd4 {[%clk 0:02:52]} 6. cxd4 {[%clk 0:03:00]}  d6 {[%clk 0:02:52]} 7. Bc4 {[%clk 0:03:00]}  Be7 {[%clk 0:02:52]} 8. O-O {[%clk 0:03:00]}  O-O {[%clk 0:02:53]} 9. Qe2 {[%clk 0:03:00]}  Nc6 {[%clk 0:02:53]} 10. Rd1 {[%clk 0:02:58]}  Qc7 {[%clk 0:02:43]} 11. Bd2 {[%clk 0:02:49]}  a6 {[%clk 0:02:43]} 12. Na3 {[%clk 0:02:45]}  dxe5 {[%clk 0:02:37]} 13. dxe5 {[%clk 0:02:41]}  Rd8 {[%clk 0:02:29]} 14. Rac1 {[%clk 0:02:38]}  Bd7 {[%clk 0:02:28]} 15. Nc2 {[%clk 0:02:23]}  Be8 {[%clk 0:02:26]} 16. Bxd5 {[%clk 0:01:53]}  Rxd5 {[%clk 0:02:26]} 17. Ne3 {[%clk 0:01:53]}  Rdd8 {[%clk 0:02:17]} 18. h4 {[%clk 0:01:51]}  Qb6 {[%clk 0:02:15]} 19. Nc4 {[%clk 0:01:44]}  Qb5 {[%clk 0:02:13]} 20. Qe4 {[%clk 0:01:38]}  Rd5 {[%clk 0:01:38]} 21. Bg5 {[%clk 0:01:28]}  Bf8 {[%clk 0:01:32]} 22. Nd6 {[%clk 0:01:17]}  Qxb2 {[%clk 0:01:17]} 23. Rxd5 {[%clk 0:01:17]}  exd5 {[%clk 0:01:16]} 24. Qxd5 {[%clk 0:01:17]}  h6 {[%clk 0:01:09]} 25. Bf4 {[%clk 0:01:03]}  Rd8 {[%clk 0:01:08]} 26. Re1 {[%clk 0:00:53]}  Ne7 {[%clk 0:00:56]} 27. Qxb7 {[%clk 0:00:45]}  Qxb7 {[%clk 0:00:52]} 28. Nxb7 {[%clk 0:00:44]}  Rb8 {[%clk 0:00:45]} 29. Nd6 {[%clk 0:00:41]}  Nd5 {[%clk 0:00:43]} 30. Bg3 {[%clk 0:00:37]}  Ba4 {[%clk 0:00:36]} 31. Nxf7 {[%clk 0:00:36]}  Rb2 {[%clk 0:00:35]} 32. e6 {[%clk 0:00:36]}  Rxa2 {[%clk 0:00:33]} 33. Nd4 {[%clk 0:00:31]}  Rd2 {[%clk 0:00:29]} 34. Nf5 {[%clk 0:00:31]}  Rd1 {[%clk 0:00:29]} 35. Rxd1 {[%clk 0:00:28]}  Bxd1 {[%clk 0:00:30]} 36. Bd6 {[%clk 0:00:20]}  Bg4 {[%clk 0:00:28]} 37. Nd4 {[%clk 0:00:18]}  Bxd6 {[%clk 0:00:15]} 38. Nxd6 {[%clk 0:00:18]}  Kf8 {[%clk 0:00:16]} 39. f3 {[%clk 0:00:16]}  Bxe6 {[%clk 0:00:16]} 40. Nxe6+ {[%clk 0:00:15]}  Ke7 {[%clk 0:00:17]} 41. Nc5 {[%clk 0:00:11]}  Kxd6 {[%clk 0:00:16]} 42. Nxa6 {[%clk 0:00:11]}  Kc6 {[%clk 0:00:14]} 43. Kf2 {[%clk 0:00:11]}  Kb6 {[%clk 0:00:12]} 44. Nb8 {[%clk 0:00:11]}  Kc7 {[%clk 0:00:12]} 45. Na6+ {[%clk 0:00:12]}  Kb6 {[%clk 0:00:12]} 46. Nb8 {[%clk 0:00:12]}  Kc7 {[%clk 0:00:08]} 47. Na6+ {[%clk 0:00:12]}  Kb6 {[%clk 0:00:08]} 1/2-1/2


[Site "https://www.chess.com"]

[Event "Titled Tuesday Blitz May 23 Early 2023"]
[White "Paravyan, David"]
[Black "Sjugirov, Sanan"]
[WhiteFideId "4194985"]
[BlackFideId "4189302"]
[WhiteElo "2563"]
[BlackElo "2569"]
[Result "0-1"]
[Round "09"]
[TimeControl "180+2"]
[Date "2023.05.23"]
[WhiteClock "0:00:00"]
[BlackClock "0:00:33"]

1. e4 {[%clk 0:03:00]}  c5 {[%clk 0:02:58]} 2. Nf3 {[%clk 0:03:00]}  d6 {[%clk 0:02:58]} 3. d4 {[%clk 0:03:00]}  cxd4 {[%clk 0:02:59]} 4. Nxd4 {[%clk 0:03:01]}  Nf6 {[%clk 0:03:00]} 5. Nc3 {[%clk 0:03:02]}  a6 {[%clk 0:03:00]} 6. Bg5 {[%clk 0:03:00]}  e6 {[%clk 0:02:59]} 7. Qd2 {[%clk 0:03:01]}  Qb6 {[%clk 0:02:43]} 8. O-O-O {[%clk 0:02:58]}  Nc6 {[%clk 0:02:43]} 9. Bxf6 {[%clk 0:02:51]}  gxf6 {[%clk 0:02:43]} 10. Nb3 {[%clk 0:02:52]}  Bd7 {[%clk 0:02:39]} 11. f4 {[%clk 0:02:51]}  O-O-O {[%clk 0:02:36]} 12. Be2 {[%clk 0:02:52]}  h5 {[%clk 0:02:36]} 13. Rhf1 {[%clk 0:02:51]}  Kb8 {[%clk 0:02:35]} 14. Rf3 {[%clk 0:02:46]}  Na5 {[%clk 0:02:14]} 15. Nxa5 {[%clk 0:02:31]}  Qxa5 {[%clk 0:02:15]} 16. Kb1 {[%clk 0:02:31]}  Bc6 {[%clk 0:02:04]} 17. Rh3 {[%clk 0:02:28]}  h4 {[%clk 0:02:00]} 18. Qe1 {[%clk 0:01:54]}  f5 {[%clk 0:01:59]} 19. Rxh4 {[%clk 0:01:41]}  Be7 {[%clk 0:01:58]} 20. Rxh8 {[%clk 0:01:41]}  Rxh8 {[%clk 0:01:59]} 21. Bd3 {[%clk 0:01:26]}  fxe4 {[%clk 0:01:52]} 22. Bxe4 {[%clk 0:01:27]}  Bxe4 {[%clk 0:01:36]} 23. Qxe4 {[%clk 0:01:28]}  Rxh2 {[%clk 0:01:34]} 24. a3 {[%clk 0:01:21]}  Bf6 {[%clk 0:01:19]} 25. Ne2 {[%clk 0:00:35]}  Qb6 {[%clk 0:01:17]} 26. c3 {[%clk 0:00:29]}  d5 {[%clk 0:01:15]} 27. Qf3 {[%clk 0:00:29]}  Ka7 {[%clk 0:01:09]} 28. Ka2 {[%clk 0:00:28]}  Qc5 {[%clk 0:01:01]} 29. f5 {[%clk 0:00:24]}  Qc4+ {[%clk 0:00:41]} 30. Ka1 {[%clk 0:00:24]}  e5 {[%clk 0:00:34]} 31. Qxd5 {[%clk 0:00:06]}  Qxd5 {[%clk 0:00:32]} 32. Rxd5 {[%clk 0:00:00]}  Rxg2 {[%clk 0:00:33]} 0-1


[Site "https://www.chess.com"]

[Event "Titled Tuesday Blitz May 23 Early 2023"]
[White "Svane, Frederik"]
[Black "Bacrot, Etienne"]
[WhiteFideId "12923044"]
[BlackFideId "605506"]
[WhiteElo "2502"]
[BlackElo "2672"]
[Result "1-0"]
[Round "09"]
[TimeControl "180+2"]
[Date "2023.05.23"]
[WhiteClock "0:00:02"]
[BlackClock "0:00:00"]

1. g3 {[%clk 0:03:00]}  d5 {[%clk 0:02:59]} 2. Nf3 {[%clk 0:03:00]}  Nf6 {[%clk 0:02:59]} 3. Bg2 {[%clk 0:03:01]}  g6 {[%clk 0:02:59]} 4. b4 {[%clk 0:02:58]}  Bg7 {[%clk 0:02:59]} 5. Bb2 {[%clk 0:02:58]}  O-O {[%clk 0:02:59]} 6. O-O {[%clk 0:02:59]}  a5 {[%clk 0:03:00]} 7. b5 {[%clk 0:02:56]}  c5 {[%clk 0:03:00]} 8. bxc6 {[%clk 0:02:56]}  Nxc6 {[%clk 0:03:00]} 9. e3 {[%clk 0:02:56]}  b5 {[%clk 0:03:00]} 10. d3 {[%clk 0:02:49]}  Ba6 {[%clk 0:02:52]} 11. Nbd2 {[%clk 0:02:47]}  b4 {[%clk 0:02:51]} 12. a3 {[%clk 0:02:43]}  Qd6 {[%clk 0:02:50]} 13. axb4 {[%clk 0:02:41]}  axb4 {[%clk 0:02:51]} 14. Nb3 {[%clk 0:02:37]}  e5 {[%clk 0:02:41]} 15. Re1 {[%clk 0:02:34]}  Nd7 {[%clk 0:02:25]} 16. Nfd2 {[%clk 0:02:21]}  Bb5 {[%clk 0:02:13]} 17. f4 {[%clk 0:02:07]}  Nb6 {[%clk 0:02:05]} 18. Nf3 {[%clk 0:01:46]}  f6 {[%clk 0:01:17]} 19. Qd2 {[%clk 0:01:14]}  Na4 {[%clk 0:01:14]} 20. Rab1 {[%clk 0:01:14]}  Nxb2 {[%clk 0:01:01]} 21. Rxb2 {[%clk 0:01:15]}  exf4 {[%clk 0:01:02]} 22. gxf4 {[%clk 0:01:13]}  Rfe8 {[%clk 0:00:52]} 23. Nbd4 {[%clk 0:01:09]}  Rab8 {[%clk 0:00:38]} 24. Nxc6 {[%clk 0:00:40]}  Bxc6 {[%clk 0:00:39]} 25. Reb1 {[%clk 0:00:40]}  d4 {[%clk 0:00:22]} 26. Nxd4 {[%clk 0:00:30]}  Bxg2 {[%clk 0:00:22]} 27. Kxg2 {[%clk 0:00:30]}  f5 {[%clk 0:00:23]} 28. Rxb4 {[%clk 0:00:29]}  Rxb4 {[%clk 0:00:12]} 29. Rxb4 {[%clk 0:00:30]}  Bxd4 {[%clk 0:00:05]} 30. Rxd4 {[%clk 0:00:29]}  Qc6+ {[%clk 0:00:05]} 31. Kg3 {[%clk 0:00:06]}  Qh1 {[%clk 0:00:05]} 32. Qf2 {[%clk 0:00:06]}  Ra8 {[%clk 0:00:02]} 33. Qg2 {[%clk 0:00:02]}  Qe1+ {[%clk 0:00:02]} 34. Qf2 {[%clk 0:00:02]}  Qh1 {[%clk 0:00:02]} 35. Qg2 {[%clk 0:00:02]}  Qe1+ {[%clk 0:00:02]} 36. Kh3 {[%clk 0:00:01]}  Qxe3+ {[%clk 0:00:00]} 37. Kh4 {[%clk 0:00:02]} 1-0


[Site "https://www.chess.com"]

[Event "Titled Tuesday Blitz May 23 Early 2023"]
[White "Babazada, Khazar"]
[Black "Suyarov, Mukhammadzokhid"]
[WhiteFideId "13413554"]
[BlackFideId "14210495"]
[WhiteElo "2351"]
[BlackElo "2361"]
[Result "1-0"]
[Round "09"]
[TimeControl "180+2"]
[Date "2023.05.23"]
[WhiteClock "0:01:12"]
[BlackClock "0:00:18"]

1. e4 {[%clk 0:03:00]}  e6 {[%clk 0:02:59]} 2. d4 {[%clk 0:02:59]}  d5 {[%clk 0:03:00]} 3. Nc3 {[%clk 0:03:00]}  Nf6 {[%clk 0:02:59]} 4. e5 {[%clk 0:02:58]}  Nfd7 {[%clk 0:02:59]} 5. Nce2 {[%clk 0:02:58]}  c5 {[%clk 0:02:59]} 6. c3 {[%clk 0:02:58]}  Nc6 {[%clk 0:03:00]} 7. Nf3 {[%clk 0:02:58]}  Qa5 {[%clk 0:02:58]} 8. a3 {[%clk 0:02:52]}  Be7 {[%clk 0:02:58]} 9. Rb1 {[%clk 0:02:45]}  c4 {[%clk 0:02:33]} 10. h4 {[%clk 0:02:41]}  Nb6 {[%clk 0:02:29]} 11. Nf4 {[%clk 0:02:39]}  Bd7 {[%clk 0:02:26]} 12. Nh5 {[%clk 0:02:27]}  Rg8 {[%clk 0:02:22]} 13. Qc2 {[%clk 0:02:26]}  g6 {[%clk 0:02:17]} 14. Nf6+ {[%clk 0:02:22]}  Bxf6 {[%clk 0:02:17]} 15. exf6 {[%clk 0:02:23]}  h5 {[%clk 0:02:15]} 16. Bf4 {[%clk 0:02:21]}  Qa4 {[%clk 0:02:14]} 17. Qd2 {[%clk 0:02:19]}  O-O-O {[%clk 0:02:09]} 18. Be2 {[%clk 0:02:13]}  Qb3 {[%clk 0:02:02]} 19. O-O {[%clk 0:02:11]}  Be8 {[%clk 0:01:59]} 20. Qe3 {[%clk 0:02:11]}  Nd7 {[%clk 0:01:58]} 21. Rfe1 {[%clk 0:02:07]}  Nxf6 {[%clk 0:01:54]} 22. Ne5 {[%clk 0:02:04]}  Ne4 {[%clk 0:01:42]} 23. Bxc4 {[%clk 0:02:01]}  dxc4 {[%clk 0:01:36]} 24. Qxe4 {[%clk 0:02:01]}  Rd5 {[%clk 0:01:36]} 25. Nf3 {[%clk 0:01:38]}  Ne7 {[%clk 0:01:30]} 26. Bh2 {[%clk 0:01:36]}  Rf5 {[%clk 0:01:27]} 27. d5 {[%clk 0:01:34]}  Nxd5 {[%clk 0:01:13]} 28. Nd4 {[%clk 0:01:34]}  Qa4 {[%clk 0:01:11]} 29. Nxf5 {[%clk 0:01:30]}  gxf5 {[%clk 0:01:12]} 30. Qe5 {[%clk 0:01:30]}  Kd7 {[%clk 0:01:06]} 31. Rbd1 {[%clk 0:01:26]}  Qc6 {[%clk 0:01:03]} 32. Rd2 {[%clk 0:01:20]}  f6 {[%clk 0:01:00]} 33. Rxd5+ {[%clk 0:01:19]}  exd5 {[%clk 0:00:54]} 34. Qe7+ {[%clk 0:01:18]}  Kc8 {[%clk 0:00:54]} 35. Re6 {[%clk 0:01:18]}  Qd7 {[%clk 0:00:24]} 36. Qc5+ {[%clk 0:01:17]}  Kd8 {[%clk 0:00:25]} 37. Rd6 {[%clk 0:01:18]}  Rg7 {[%clk 0:00:20]} 38. Rxd7+ {[%clk 0:01:15]}  Rxd7 {[%clk 0:00:21]} 39. Qxa7 {[%clk 0:01:15]}  d4 {[%clk 0:00:19]} 40. cxd4 {[%clk 0:01:15]}  Bf7 {[%clk 0:00:20]} 41. Qc5 {[%clk 0:01:14]}  Bd5 {[%clk 0:00:21]} 42. Bd6 {[%clk 0:01:13]}  Ke8 {[%clk 0:00:18]} 43. Qxd5 {[%clk 0:01:12]} 1-0


[Site "https://www.chess.com"]

[Event "Titled Tuesday Blitz May 23 Early 2023"]
[White "Madaminov, Mukhiddin"]
[Black "Pranav Anand"]
[WhiteFideId "14210703"]
[BlackFideId "46626786"]
[WhiteElo "2511"]
[BlackElo "2389"]
[Result "0-1"]
[Round "09"]
[TimeControl "180+2"]
[Date "2023.05.23"]
[WhiteClock "0:00:00"]
[BlackClock "0:00:32"]

1. d4 {[%clk 0:03:00]}  Nf6 {[%clk 0:02:58]} 2. Nc3 {[%clk 0:03:00]}  d5 {[%clk 0:02:57]} 3. Bf4 {[%clk 0:03:00]}  a6 {[%clk 0:02:58]} 4. e3 {[%clk 0:03:00]}  b5 {[%clk 0:02:56]} 5. Nf3 {[%clk 0:02:57]}  Bb7 {[%clk 0:02:53]} 6. a4 {[%clk 0:02:54]}  b4 {[%clk 0:02:53]} 7. Na2 {[%clk 0:02:55]}  e6 {[%clk 0:02:53]} 8. c3 {[%clk 0:02:56]}  bxc3 {[%clk 0:02:45]} 9. Nxc3 {[%clk 0:02:56]}  Nbd7 {[%clk 0:02:42]} 10. Bd3 {[%clk 0:02:53]}  c5 {[%clk 0:02:42]} 11. O-O {[%clk 0:02:53]}  cxd4 {[%clk 0:02:37]} 12. exd4 {[%clk 0:02:52]}  Be7 {[%clk 0:02:38]} 13. Qb3 {[%clk 0:02:35]}  Qb6 {[%clk 0:02:27]} 14. Qxb6 {[%clk 0:02:30]}  Nxb6 {[%clk 0:02:28]} 15. a5 {[%clk 0:02:31]}  Nbd7 {[%clk 0:02:28]} 16. Na4 {[%clk 0:02:23]}  O-O {[%clk 0:02:27]} 17. b4 {[%clk 0:02:19]}  Bc6 {[%clk 0:02:12]} 18. Nc5 {[%clk 0:02:19]}  Nh5 {[%clk 0:02:07]} 19. Be3 {[%clk 0:02:14]}  Bxc5 {[%clk 0:02:05]} 20. bxc5 {[%clk 0:02:11]}  Nhf6 {[%clk 0:01:47]} 21. Bf4 {[%clk 0:02:06]}  Ne4 {[%clk 0:01:48]} 22. Rfb1 {[%clk 0:01:48]}  f6 {[%clk 0:01:42]} 23. Nd2 {[%clk 0:01:41]}  Nc3 {[%clk 0:01:40]} 24. Re1 {[%clk 0:01:31]}  Rfe8 {[%clk 0:01:38]} 25. Bd6 {[%clk 0:01:17]}  e5 {[%clk 0:01:20]} 26. f3 {[%clk 0:01:17]}  Nb5 {[%clk 0:01:17]} 27. Bxb5 {[%clk 0:01:11]}  Bxb5 {[%clk 0:01:18]} 28. dxe5 {[%clk 0:01:07]}  fxe5 {[%clk 0:01:18]} 29. Kf2 {[%clk 0:01:04]}  Rac8 {[%clk 0:01:16]} 30. Rac1 {[%clk 0:01:05]}  Kf7 {[%clk 0:01:12]} 31. h4 {[%clk 0:00:56]}  Kf6 {[%clk 0:00:58]} 32. g4 {[%clk 0:00:54]}  Nb8 {[%clk 0:00:51]} 33. Bxb8 {[%clk 0:00:44]}  Rxb8 {[%clk 0:00:52]} 34. c6 {[%clk 0:00:44]}  Rbc8 {[%clk 0:00:51]} 35. c7 {[%clk 0:00:41]}  Re7 {[%clk 0:00:51]} 36. Rc5 {[%clk 0:00:39]}  Ke6 {[%clk 0:00:48]} 37. f4 {[%clk 0:00:24]}  Kd6 {[%clk 0:00:48]} 38. Rc3 {[%clk 0:00:17]}  e4 {[%clk 0:00:46]} 39. Rec1 {[%clk 0:00:15]}  d4 {[%clk 0:00:43]} 40. Nc4+ {[%clk 0:00:09]}  Ke6 {[%clk 0:00:37]} 41. Nb6 {[%clk 0:00:09]}  dxc3 {[%clk 0:00:37]} 42. Nxc8 {[%clk 0:00:09]}  Rxc7 {[%clk 0:00:37]} 43. Nb6 {[%clk 0:00:09]}  c2 {[%clk 0:00:34]} 44. Ke3 {[%clk 0:00:10]}  Bd3 {[%clk 0:00:35]} 45. Kd4 {[%clk 0:00:10]}  Rc6 {[%clk 0:00:33]} 46. f5+ {[%clk 0:00:10]}  Kf6 {[%clk 0:00:31]} 47. Nd5+ {[%clk 0:00:10]}  Kf7 {[%clk 0:00:31]} 48. Nb4 {[%clk 0:00:11]}  Rc4+ {[%clk 0:00:31]} 49. Ke5 {[%clk 0:00:05]}  Rxb4 {[%clk 0:00:31]} 50. g5 {[%clk 0:00:04]}  Rb5+ {[%clk 0:00:31]} 51. Kf4 {[%clk 0:00:04]}  Rb1 {[%clk 0:00:31]} 52. g6+ {[%clk 0:00:05]}  hxg6 {[%clk 0:00:31]} 53. fxg6+ {[%clk 0:00:06]}  Kxg6 {[%clk 0:00:32]} 54. h5+ {[%clk 0:00:00]}  Kf7 {[%clk 0:00:32]} 0-1


[Site "https://www.chess.com"]

[Event "Titled Tuesday Blitz May 23 Early 2023"]
[White "Stoleriu, George"]
[Black "Sychev, Klementy"]
[WhiteFideId "1227505"]
[BlackFideId "4114060"]
[WhiteElo "2308"]
[BlackElo "2583"]
[Result "0-1"]
[Round "09"]
[TimeControl "180+2"]
[Date "2023.05.23"]
[WhiteClock "0:00:01"]
[BlackClock "0:00:05"]

1. e4 {[%clk 0:03:00]}  e5 {[%clk 0:03:00]} 2. Nf3 {[%clk 0:02:53]}  Nc6 {[%clk 0:03:00]} 3. Bb5 {[%clk 0:02:52]}  a6 {[%clk 0:03:00]} 4. Ba4 {[%clk 0:02:50]}  f5 {[%clk 0:03:00]} 5. d3 {[%clk 0:02:40]}  fxe4 {[%clk 0:03:00]} 6. dxe4 {[%clk 0:02:41]}  Nf6 {[%clk 0:03:00]} 7. O-O {[%clk 0:02:31]}  d6 {[%clk 0:03:00]} 8. Bxc6+ {[%clk 0:02:18]}  bxc6 {[%clk 0:03:00]} 9. Qd3 {[%clk 0:02:13]}  a5 {[%clk 0:02:31]} 10. c4 {[%clk 0:02:06]}  Be7 {[%clk 0:02:23]} 11. Nc3 {[%clk 0:02:01]}  O-O {[%clk 0:02:22]} 12. Ne1 {[%clk 0:01:30]}  Nh5 {[%clk 0:02:12]} 13. Nc2 {[%clk 0:01:25]}  Be6 {[%clk 0:02:05]} 14. b3 {[%clk 0:01:22]}  Qe8 {[%clk 0:02:02]} 15. Ne2 {[%clk 0:00:44]}  Qg6 {[%clk 0:02:00]} 16. Ng3 {[%clk 0:00:34]}  Nf4 {[%clk 0:01:54]} 17. Bxf4 {[%clk 0:00:34]}  exf4 {[%clk 0:01:26]} 18. Nf5 {[%clk 0:00:32]}  Rxf5 {[%clk 0:01:25]} 19. exf5 {[%clk 0:00:31]}  Bxf5 {[%clk 0:01:25]} 20. Qe2 {[%clk 0:00:28]}  Bf6 {[%clk 0:01:14]} 21. Rac1 {[%clk 0:00:09]}  Re8 {[%clk 0:01:07]} 22. Qf3 {[%clk 0:00:09]}  Be4 {[%clk 0:01:02]} 23. Qh3 {[%clk 0:00:09]}  Bxc2 {[%clk 0:00:59]} 24. Rfe1 {[%clk 0:00:08]}  Be5 {[%clk 0:00:48]} 25. Qf3 {[%clk 0:00:04]}  Rf8 {[%clk 0:00:39]} 26. Re2 {[%clk 0:00:02]}  Bd3 {[%clk 0:00:36]} 27. Ree1 {[%clk 0:00:02]}  c5 {[%clk 0:00:21]} 28. Rcd1 {[%clk 0:00:02]}  Bc2 {[%clk 0:00:21]} 29. Rd2 {[%clk 0:00:02]}  Bf5 {[%clk 0:00:20]} 30. h3 {[%clk 0:00:01]}  h5 {[%clk 0:00:20]} 31. Rde2 {[%clk 0:00:01]}  Bd7 {[%clk 0:00:18]} 32. Qd5+ {[%clk 0:00:01]}  Be6 {[%clk 0:00:18]} 33. Qf3 {[%clk 0:00:02]}  Bf5 {[%clk 0:00:14]} 34. Rd1 {[%clk 0:00:02]}  Rf7 {[%clk 0:00:12]} 35. Rde1 {[%clk 0:00:02]}  Kh7 {[%clk 0:00:12]} 36. Rd1 {[%clk 0:00:03]}  Bd7 {[%clk 0:00:11]} 37. Kh1 {[%clk 0:00:02]}  Qh6 {[%clk 0:00:10]} 38. Qe4+ {[%clk 0:00:02]}  Bf5 {[%clk 0:00:09]} 39. Qf3 {[%clk 0:00:03]}  Bg4 {[%clk 0:00:09]} 40. Qe4+ {[%clk 0:00:02]}  Kh8 {[%clk 0:00:08]} 41. f3 {[%clk 0:00:02]}  Bf5 {[%clk 0:00:08]} 42. Qd5 {[%clk 0:00:03]}  Qg6 {[%clk 0:00:08]} 43. Rg1 {[%clk 0:00:02]}  Rf8 {[%clk 0:00:07]} 44. Qd1 {[%clk 0:00:02]}  Qg3 {[%clk 0:00:07]} 45. Qe1 {[%clk 0:00:03]}  Qg5 {[%clk 0:00:07]} 46. Qf2 {[%clk 0:00:03]}  Qg6 {[%clk 0:00:07]} 47. Qh4 {[%clk 0:00:03]}  Kh7 {[%clk 0:00:06]} 48. Rge1 {[%clk 0:00:03]}  Bd7 {[%clk 0:00:06]} 49. Rd1 {[%clk 0:00:03]}  Bc6 {[%clk 0:00:06]} 50. Rde1 {[%clk 0:00:03]}  Rf5 {[%clk 0:00:06]} 51. Kh2 {[%clk 0:00:03]}  Rg5 {[%clk 0:00:06]} 52. Rd1 {[%clk 0:00:02]}  Bd7 {[%clk 0:00:06]} 53. Rde1 {[%clk 0:00:02]}  Bf5 {[%clk 0:00:06]} 54. Rxe5 {[%clk 0:00:02]}  dxe5 {[%clk 0:00:06]} 55. Rxe5 {[%clk 0:00:03]}  Qf6 {[%clk 0:00:05]} 56. Rxc5 {[%clk 0:00:02]}  Rxg2+ {[%clk 0:00:05]} 57. Kxg2 {[%clk 0:00:01]}  Qxh4 {[%clk 0:00:05]} 0-1


[Site "https://www.chess.com"]